bitfinex-derivatives/quotes_BNBF0:USTF0_20260114
["timestamp","ask_amount","ask_price","bid_price","bid_amount"]
[1768413980278,0.74896917,942.82,941.59,2.62219105]
[1768413980578,0.74896917,942.81,941.59,2.62219105]
[1768413980780,0.74896917,942.8,941.59,2.62219105]
[1768413980978,0.74896917,942.79,941.59,2.62219105]
[1768413981175,0.74896917,942.78,941.59,2.62219105]
[1768413981380,0.74896917,942.77,941.59,2.62219105]
[1768413981581,0.74896917,942.76,941.6,2.62219105]
[1768413981782,0.74896917,942.75,941.6,2.62219105]
[1768413982081,0.74896917,942.74,941.6,2.62219105]
[1768413982281,0.74896917,942.73,941.6,2.62219105]
[1768413982577,0.74896917,942.72,941.6,2.62219105]
[1768413982779,1.844,943.0,941.6,2.62219105]
[1768413982780,0.74896917,942.71,941.6,2.62219105]
[1768413982978,0.74896917,942.7,941.6,2.62219105]
[1768413983182,0.74896917,942.69,941.6,2.62219105]
[1768413983382,0.74896917,942.68,941.6,2.62219105]
[1768413983584,0.74896917,942.67,941.6,2.62219105]
[1768413983783,0.75002518,942.66,941.6,2.62219105]
[1768413983980,0.75002518,942.65,941.6,2.62219105]
[1768413984187,0.75002518,942.64,941.6,2.62219105]
[1768413984484,0.75002518,942.63,941.6,2.62219105]
[1768413984681,0.75002518,942.62,941.6,2.62219105]
[1768413984982,0.75002518,942.61,941.6,2.62219105]
[1768413985181,0.75002518,942.6,941.6,2.62219105]
[1768413985382,0.75002518,942.59,941.6,2.62219105]
[1768413985584,0.75002518,942.58,941.6,2.62219105]
[1768413985784,1.844,943.0,940.98,0.18458748]
[1768413985785,0.75002518,942.57,941.62,2.62219105]
[1768413985984,0.75002518,942.56,941.62,2.62219105]
[1768413986187,0.75002518,942.55,941.62,2.62219105]
[1768413986384,0.75002518,942.54,941.62,2.62219105]
[1768413986585,1.844,943.0,941.62,2.62219105]
[1768413986888,0.75081758,942.99,941.54,2.62219105]
[1768413987184,0.75081758,942.98,941.54,2.62219105]
[1768413987383,0.75081758,942.97,941.54,2.62219105]
[1768413987588,0.75081758,942.96,941.54,2.62219105]
[1768413987888,0.75081758,942.95,941.54,2.62219105]
[1768413988189,0.75081758,942.94,941.54,2.62219105]
[1768413988488,0.75081758,942.93,941.55,2.62219105]
[1768413988686,0.75081758,942.92,941.55,2.62219105]
[1768413988887,0.75081758,942.91,941.55,2.62219105]
[1768413989090,0.75081758,942.9,941.55,2.62219105]
[1768413989390,0.75081758,942.89,941.55,2.62219105]
[1768413989691,0.75081758,942.88,941.55,2.62219105]
[1768413989890,0.75081758,942.87,941.55,2.62219105]
[1768413990091,0.75081758,942.86,941.6,2.62219105]
[1768413990286,0.75081758,942.85,941.6,2.62219105]
[1768413990590,0.75081758,942.84,941.62,2.62219105]
[1768413990787,0.75081758,942.83,941.62,2.62219105]
[1768413990990,0.75081758,942.82,941.64,2.62219105]
[1768413991191,0.75081758,942.81,941.64,2.62219105]
[1768413991392,0.75081758,942.8,941.64,2.62219105]
[1768413991692,0.75081758,942.79,941.83,2.62219105]
[1768413991893,0.75081758,942.78,941.83,2.62219105]
[1768413992089,0.75081758,942.77,941.83,2.62219105]
[1768413992291,6.76967976,943.54,941.83,2.62219105]
[1768413992491,0.75078292,943.53,941.83,2.62219105]
[1768413992691,0.75078292,943.52,941.81,2.62219105]
[1768413992892,0.75078292,943.51,941.81,2.62219105]
[1768413993192,0.75078292,943.5,941.8,2.62219105]
[1768413993392,0.75078292,943.49,941.8,2.62219105]
[1768413993593,0.75078292,943.48,941.79,2.62219105]
[1768413993794,0.75078292,943.47,941.79,2.62219105]
[1768413993993,0.75078292,943.46,941.79,2.62219105]
[1768413994193,0.75078292,943.45,941.79,2.62219105]
[1768413994493,0.75078292,943.44,941.79,2.62219105]
[1768413994689,0.75078292,943.43,941.79,2.62219105]
[1768413994895,0.75078292,943.42,941.78,2.62219105]
[1768413995088,0.75078292,943.41,941.78,2.62219105]
[1768413995292,0.75078292,943.4,941.77,2.62219105]
[1768413995494,0.75078292,943.39,941.77,2.62219105]
[1768413995694,0.75078292,943.38,941.77,2.62219105]
[1768413995892,0.75078292,943.37,941.77,2.62219105]
[1768413996193,0.75078292,943.36,941.77,2.62219105]
[1768413996393,0.75078292,943.35,941.77,2.62219105]
[1768413996692,0.75078292,943.34,941.77,2.62219105]
[1768413996892,0.75078292,943.33,941.76,2.62219105]
[1768413997092,0.75078292,943.32,941.76,2.62219105]
[1768413997294,0.75078292,943.31,941.76,2.62219105]
[1768413997492,0.75078292,943.3,941.76,2.62219105]
[1768413997697,0.75078292,943.29,941.76,2.62219105]
[1768413997893,0.75078292,943.28,941.76,2.62219105]
[1768413998092,0.75078292,943.27,941.76,2.62219105]
[1768413998296,0.75078292,943.26,941.76,2.62219105]
[1768413998497,0.75078292,943.25,941.75,2.62219105]
[1768413998697,0.75078292,943.24,941.75,2.62219105]
[1768413998994,0.75078292,943.23,941.75,2.62219105]
[1768413999198,0.75078292,943.22,941.75,2.62219105]
[1768413999497,0.75078292,943.21,941.75,2.62219105]
[1768413999693,0.75078292,943.2,941.75,2.62219105]
[1768413999893,0.75078292,943.19,941.8,2.62219105]
[1768414000196,0.75078292,943.18,941.8,2.62219105]
[1768414000393,0.75078292,943.17,941.8,2.62219105]
[1768414000595,0.75078292,943.16,941.79,2.62219105]
[1768414000894,0.75078292,943.15,941.79,2.62219105]
[1768414001097,0.75078292,943.14,941.81,2.62219105]
[1768414001299,0.75078292,943.13,941.81,2.62219105]
[1768414001597,0.75078292,943.12,941.81,2.62219105]
[1768414001797,0.75078292,943.11,941.81,2.62219105]
[1768414001998,0.75078292,943.1,941.82,2.62219105]
[1768414002199,0.75078292,943.09,941.82,2.62219105]
[1768414002397,0.75078292,943.08,941.82,2.62219105]
[1768414002600,0.75078292,943.07,941.86,2.62219105]
[1768414002796,0.75078292,943.06,941.86,2.62219105]
[1768414003001,0.75078292,943.05,941.86,2.62219105]
[1768414003201,0.75078292,943.04,941.86,2.62219105]
[1768414003402,0.75078292,943.03,941.86,2.62219105]
[1768414003598,6.76967976,943.54,941.85,2.62219105]
[1768414003599,0.75078292,943.02,941.85,2.62219105]
[1768414003801,0.75078292,943.01,941.85,2.62219105]
[1768414003998,0.75078292,943.0,941.85,2.62219105]
[1768414004200,0.75078292,942.99,941.85,2.62219105]
[1768414004403,0.75078292,942.98,941.85,2.62219105]
[1768414004700,0.75078292,942.97,941.85,2.62219105]
[1768414004904,0.75078292,942.96,941.85,2.62219105]
[1768414005101,0.75078292,942.95,941.85,2.62219105]
[1768414005304,6.76967976,943.54,941.85,2.62219105]
[1768414005505,0.74816509,943.53,941.85,2.62219105]
[1768414005800,6.76967976,943.54,941.85,2.62219105]
[1768414005801,0.74816509,943.52,941.85,2.62219105]
[1768414006005,0.74816509,943.51,941.85,2.62219105]
[1768414006201,0.74816509,943.5,941.84,2.62219105]
[1768414006410,0.74816509,943.49,941.84,2.62219105]
[1768414006604,0.74816509,943.48,941.84,2.62219105]
[1768414006907,0.74816509,943.47,941.93,2.62219105]
[1768414007210,0.74816509,943.46,941.91,2.62219105]
[1768414007508,0.74816509,943.45,941.91,2.62219105]
[1768414007709,0.74816509,943.44,941.91,2.62219105]
[1768414007911,0.74816509,943.43,941.91,2.62219105]
[1768414008110,0.74816509,943.42,941.91,2.62219105]
[1768414008410,0.74816509,943.41,941.9,2.62219105]
[1768414008706,0.74816509,943.4,941.9,2.62219105]
[1768414008908,0.74816509,943.39,941.9,2.62219105]
[1768414009111,0.74816509,943.38,941.9,2.62219105]
[1768414009308,0.74816509,943.37,941.89,2.62219105]
[1768414009623,0.74816509,943.36,941.89,2.62219105]
[1768414009812,0.74816509,943.35,941.89,2.62219105]
[1768414010012,0.74816509,943.34,941.89,2.62219105]
[1768414010209,0.74816509,943.33,941.89,2.62219105]
[1768414010414,0.74816509,943.32,941.88,2.62219105]
[1768414010611,0.74816509,943.31,941.88,2.62219105]
[1768414010815,0.74816509,943.3,941.88,2.62219105]
[1768414011016,0.74816509,943.29,941.88,2.62219105]
[1768414011215,0.74816509,943.28,941.88,2.62219105]
[1768414011511,0.74816509,943.27,941.87,2.62219105]
[1768414011712,0.74816509,943.26,941.87,2.62219105]
[1768414012013,0.74816509,943.25,941.87,2.62219105]
[1768414012214,0.74816509,943.24,941.87,2.62219105]
[1768414012414,0.74816509,943.23,941.86,2.62219105]
[1768414012614,0.74816509,943.22,941.86,2.62219105]
[1768414012814,0.74816509,943.21,941.86,2.62219105]
[1768414013014,0.74816509,943.2,941.86,2.62219105]
[1768414013214,0.74816509,943.19,941.86,2.62219105]
[1768414013411,0.74816509,943.18,941.86,2.62219105]
[1768414013614,0.74816509,943.17,941.86,2.62219105]
[1768414013817,0.74816509,943.16,941.86,2.62219105]
[1768414014113,0.74816509,943.15,941.86,2.62219105]
[1768414014315,0.74816509,943.14,941.86,2.62219105]
[1768414014513,0.74816509,943.13,941.86,2.62219105]
[1768414014713,0.74816509,943.12,941.86,2.62219105]
[1768414015016,6.76967976,943.54,941.85,2.62219105]
[1768414015217,0.74708837,943.53,941.85,2.62219105]
[1768414015516,0.74708837,943.52,941.85,2.62219105]
[1768414015714,0.74708837,943.51,941.85,2.62219105]
[1768414015917,0.74708837,943.5,941.85,2.62219105]
[1768414016217,0.74708837,943.49,941.85,2.62219105]
[1768414016417,0.74708837,943.48,941.85,2.62219105]
[1768414016614,0.74708837,943.47,941.85,2.62219105]
[1768414016818,0.74708837,943.46,941.85,2.62219105]
[1768414017018,0.74708837,943.45,941.85,2.62219105]
[1768414017218,0.74708837,943.44,941.84,2.62219105]
[1768414017418,0.74708837,943.43,941.84,2.62219105]
[1768414017620,0.74708837,943.42,941.84,2.62219105]
[1768414017816,0.74708837,943.41,941.84,2.62219105]
[1768414018020,0.74708837,943.4,941.84,2.62219105]
[1768414018217,0.74708837,943.39,941.84,2.62219105]
[1768414018516,0.74708837,943.38,941.84,2.62219105]
[1768414018715,0.74708837,943.37,941.84,2.62219105]
[1768414018916,0.74708837,943.36,941.84,2.62219105]
[1768414019118,0.74708837,943.35,941.84,2.62219105]
[1768414019320,0.74708837,943.34,941.84,2.62219105]
[1768414019521,0.74708837,943.33,941.84,2.62219105]
[1768414019720,0.74708837,943.32,941.84,2.62219105]
[1768414020020,0.74708837,943.31,941.84,2.62219105]
[1768414020320,0.74708837,943.3,941.85,2.62219105]
[1768414020516,0.74708837,943.29,941.85,2.62219105]
[1768414020817,0.74708837,943.28,941.84,2.62219105]
[1768414021018,0.74708837,943.27,941.84,2.62219105]
[1768414021214,0.74708837,943.26,941.84,2.62219105]
[1768414021419,0.74708837,943.25,941.84,2.62219105]
[1768414021615,0.74708837,943.24,941.84,2.62219105]
[1768414021920,0.74708837,943.23,941.84,2.62219105]
[1768414022115,0.74708837,943.22,941.84,2.62219105]
[1768414022317,0.74708837,943.21,941.77,2.62219105]
[1768414022520,0.74708837,943.2,941.77,2.62219105]
[1768414022719,0.74708837,943.19,941.77,2.62219105]
[1768414022918,0.74708837,943.18,941.73,2.62219105]
[1768414023122,0.74708837,943.17,941.73,2.62219105]
[1768414023322,0.74708837,943.16,941.74,2.62219105]
[1768414023520,0.74708837,943.15,941.74,2.62219105]
[1768414023823,0.74708837,943.14,941.68,2.62219105]
[1768414024018,0.74708837,943.13,941.68,2.62219105]
[1768414024224,0.74708837,943.12,941.68,2.62219105]
[1768414024525,0.74708837,943.11,941.69,2.62219105]
[1768414024727,0.74708837,943.1,941.69,2.62219105]
[1768414024925,0.74708837,943.09,941.6,2.62219105]
[1768414025225,0.74708837,943.08,941.6,2.62219105]
[1768414025524,0.74708837,943.07,941.61,2.62219105]
[1768414025823,0.74708837,943.06,941.61,2.62219105]
[1768414026022,0.74708837,943.05,941.62,2.62219105]
[1768414026225,0.74708837,943.04,941.62,2.62219105]
[1768414026420,0.74708837,943.03,941.62,2.62219105]
[1768414026725,0.74708837,943.02,941.69,2.62219105]
[1768414026926,0.74708837,943.01,941.69,2.62219105]
[1768414027225,0.74708837,943.0,941.69,2.62219105]
[1768414027422,0.74708837,942.99,941.69,2.62219105]
[1768414027623,0.74708837,942.98,941.72,2.62219105]
[1768414027823,0.74708837,942.97,941.72,2.62219105]
[1768414028022,0.74708837,942.96,941.72,2.62219105]
[1768414028223,0.74708837,942.95,941.72,2.62219105]
[1768414028426,0.74708837,942.94,941.72,2.62219105]
[1768414028723,6.76967976,943.54,941.76,2.62219105]
[1768414028923,0.74813163,943.53,941.76,2.62219105]
[1768414029224,0.74813163,943.52,941.76,2.62219105]
[1768414029424,0.74813163,943.51,941.76,2.62219105]
[1768414029725,0.74813163,943.5,941.79,2.62219105]
[1768414029930,0.74813163,943.49,941.79,2.62219105]
[1768414030126,0.74813163,943.48,941.82,2.62219105]
[1768414030426,0.74813163,943.47,941.82,2.62219105]
[1768414030632,0.74813163,943.46,941.83,2.62219105]
[1768414030826,0.74813163,943.45,941.83,2.62219105]
[1768414031032,0.74813163,943.44,941.83,2.62219105]
[1768414031329,0.74813163,943.43,941.83,2.62219105]
[1768414031529,0.74813163,943.42,941.83,2.62219105]
[1768414031730,0.74813163,943.41,941.85,2.62219105]
[1768414032026,0.74813163,943.4,941.85,2.62219105]
[1768414032329,0.74813163,943.39,941.86,2.62219105]
[1768414032525,0.74813163,943.38,941.86,2.62219105]
[1768414032829,0.74813163,943.37,941.86,2.62219105]
[1768414033027,0.74813163,943.36,941.86,2.62219105]
[1768414033228,0.74813163,943.35,941.87,2.62219105]
[1768414033526,0.74813163,943.34,941.87,2.62219105]
[1768414033727,0.74813163,943.33,941.87,2.62219105]
[1768414033926,0.74813163,943.32,941.87,2.62219105]
[1768414034126,0.74813163,943.31,941.87,2.62219105]
[1768414034426,0.74813163,943.3,941.92,2.62219105]
[1768414034626,0.74813163,943.29,941.92,2.62219105]
[1768414034925,0.74813163,943.28,941.92,2.62219105]
[1768414035125,0.74813163,943.27,941.92,2.62219105]
[1768414035331,0.74813163,943.26,941.95,2.62219105]
[1768414035531,0.74813163,943.25,941.95,2.62219105]
[1768414035732,0.74813163,943.24,941.95,2.62219105]
[1768414035933,0.74813163,943.23,941.95,2.62219105]
[1768414036231,0.74813163,943.22,941.95,2.62219105]
[1768414036433,0.74813163,943.21,941.98,2.62219105]
[1768414036634,0.74813163,943.2,941.98,2.62219105]
[1768414036931,0.74813163,943.19,941.97,2.62219105]
[1768414037134,0.74813163,943.18,941.97,2.62219105]
[1768414037334,0.74813163,943.17,941.97,2.62219105]
[1768414037531,0.74813163,943.16,941.97,2.62219105]
[1768414037836,0.74813163,943.15,941.97,2.62219105]
[1768414038036,0.74813163,943.14,941.97,2.62219105]
[1768414038234,0.74813163,943.13,941.97,2.62219105]
[1768414038432,0.74813163,943.13,941.63,3.67106748]
[1768414038433,0.74813163,943.12,941.98,2.62219105]
[1768414038637,0.74813163,943.11,941.98,2.62219105]
[1768414038839,0.74813163,943.1,941.98,2.62219105]
[1768414039039,0.74813163,943.09,941.98,2.62219105]
[1768414039241,0.74813163,943.08,941.98,2.62219105]
[1768414039440,0.74813163,943.07,941.98,2.62219105]
[1768414039637,0.74813163,943.06,941.98,2.62219105]
[1768414039850,0.74813163,943.05,941.98,2.62219105]
[1768414040141,0.74813163,943.04,941.98,2.62219105]
[1768414040341,0.74813163,943.03,941.98,2.62219105]
[1768414040542,0.74813163,943.02,941.98,2.62219105]
[1768414040736,0.74813163,943.01,941.98,2.62219105]
[1768414040936,0.74813163,943.0,941.98,2.62219105]
[1768414041236,0.74813163,942.99,941.98,2.62219105]
[1768414041437,0.74813163,942.98,941.98,2.62219105]
[1768414041642,0.74813163,942.97,941.96,2.62219105]
[1768414041836,6.76967976,943.54,941.96,2.62219105]
[1768414041837,0.74813163,942.96,941.96,2.62219105]
[1768414042138,0.74813163,942.95,941.96,2.62219105]
[1768414042335,6.76967976,943.54,941.96,2.62219105]
[1768414042336,0.74813163,942.94,941.96,2.62219105]
[1768414042536,0.74813163,942.93,941.96,2.62219105]
[1768414042740,0.74813163,942.92,941.96,2.62219105]
[1768414043043,0.74813163,942.91,941.96,2.62219105]
[1768414043338,0.74813163,942.9,941.96,2.62219105]
[1768414043538,0.74813163,942.89,941.96,2.62219105]
[1768414043741,6.76967976,943.54,941.96,2.62219105]
[1768414043938,0.75013824,943.53,941.96,2.62219105]
[1768414044137,1.945,943.53,941.96,2.62219105]
[1768414044340,0.75019288,943.52,941.96,2.62219105]
[1768414044541,0.75019288,943.51,941.96,2.62219105]
[1768414044842,0.75019288,943.5,941.97,2.62219105]
[1768414045039,0.75019288,943.49,941.97,2.62219105]
[1768414045239,0.75019288,943.48,941.97,2.62219105]
[1768414045438,0.75019288,943.47,941.97,2.62219105]
[1768414045641,0.75019288,943.46,941.97,2.62219105]
[1768414045840,0.75019288,943.45,941.97,2.62219105]
[1768414046039,0.75019288,943.44,941.97,2.62219105]
[1768414046341,0.75019288,943.43,941.97,2.62219105]
[1768414046538,0.75019288,943.42,941.97,2.62219105]
[1768414046744,0.75019288,943.41,942.07,2.62219105]
[1768414046940,0.75019288,943.4,942.07,2.62219105]
[1768414047145,0.75019288,943.39,942.07,2.62219105]
[1768414047344,0.75019288,943.38,942.07,2.62219105]
[1768414047546,0.75019288,943.37,942.07,2.62219105]
[1768414047745,0.75019288,943.36,942.07,2.62219105]
[1768414047944,0.75019288,943.35,942.07,2.62219105]
[1768414048148,0.75019288,943.34,942.07,2.62219105]
[1768414048344,0.75019288,943.33,942.07,2.62219105]
[1768414048546,0.75019288,943.32,942.07,2.62219105]
[1768414048744,0.75019288,943.31,942.07,2.62219105]
[1768414048948,0.75019288,943.3,942.07,2.62219105]
[1768414049147,0.75019288,943.29,942.07,2.62219105]
[1768414049350,0.75019288,943.28,942.07,2.62219105]
[1768414049553,0.75019288,943.27,942.07,2.62219105]
[1768414049847,0.75019288,943.26,942.07,2.62219105]
[1768414050051,0.75019288,943.25,942.07,2.62219105]
[1768414050347,0.75019288,943.24,942.07,2.62219105]
[1768414050548,0.75019288,943.23,942.07,2.62219105]
[1768414050847,0.75019288,943.22,942.07,2.62219105]
[1768414051146,0.75019288,943.21,942.07,2.62219105]
[1768414051348,0.75019288,943.2,942.07,2.62219105]
[1768414051550,0.75019288,943.19,942.07,2.62219105]
[1768414051752,0.75019288,943.18,942.07,2.62219105]
[1768414051951,0.75019288,943.17,942.08,2.62219105]
[1768414052152,0.75019288,943.16,942.08,2.62219105]
[1768414052348,0.75019288,943.15,942.08,2.62219105]
[1768414052554,0.75019288,943.14,942.12,2.62219105]
[1768414052755,0.75019288,943.13,942.12,2.62219105]
[1768414052954,0.75019288,943.12,942.12,2.62219105]
[1768414053254,0.75019288,943.11,942.12,2.62219105]
[1768414053454,0.75019288,943.1,942.12,2.62219105]
[1768414053654,0.75019288,943.09,942.12,2.62219105]
[1768414053954,0.75019288,943.08,942.12,2.62219105]
[1768414054155,0.75019288,943.07,942.12,2.62219105]
[1768414054355,0.75019288,943.06,942.12,2.62219105]
[1768414054553,0.75019288,943.05,942.13,2.62219105]
[1768414054753,0.75019288,943.04,942.13,2.62219105]
[1768414054960,0.10705868,943.03,942.13,2.62219105]
[1768414055255,1.945,943.53,942.13,2.62219105]
[1768414056058,1.945,943.53,942.11,2.62219105]
[1768414056555,1.945,943.53,942.02,2.62219105]
[1768414059260,1.945,943.53,942.0,2.62219105]
[1768414061265,1.945,943.53,942.01,2.62219105]
[1768414061762,1.945,943.53,942.0,2.62219105]
[1768414062869,1.945,943.53,941.99,2.62219105]
[1768414069676,1.945,943.53,942.0,2.62219105]
[1768414071176,1.945,943.53,942.01,2.62219105]
[1768414072181,1.945,943.53,942.02,2.62219105]
[1768414073381,1.945,943.53,942.03,2.62219105]
[1768414074383,1.945,943.53,942.04,2.62219105]
[1768414078490,1.945,943.53,942.05,2.62219105]
[1768414081288,1.945,943.53,942.06,2.62219105]
[1768414081688,1.945,943.53,942.09,2.62219105]
[1768414083290,1.945,943.53,942.15,2.62219105]
[1768414084889,1.945,943.53,942.14,2.62219105]
[1768414086294,1.945,943.53,942.12,2.62219105]
[1768414086793,1.945,943.53,942.09,2.62219105]
[1768414087493,1.945,943.53,942.02,2.62219105]
[1768414093996,1.945,943.53,941.87,2.62219105]
[1768414094394,1.945,943.53,941.75,2.62219105]
[1768414094795,1.945,943.53,941.53,0.18445881]
[1768414094796,1.945,943.53,941.74,2.62219105]
[1768414095394,1.945,943.53,941.67,2.62219105]
[1768414096595,1.945,943.53,941.71,2.62219105]
[1768414097495,1.945,943.53,941.7,2.62219105]
[1768414098494,1.945,943.53,941.68,2.62219105]
[1768414099598,1.945,943.53,941.67,2.62219105]
[1768414100699,1.945,943.53,941.66,2.62219105]
[1768414101103,0.18443535,944.19,941.66,2.62219105]
[1768414102704,0.18443535,944.19,941.65,2.62219105]
[1768414103704,1.795,944.18,941.65,2.62219105]
[1768414104007,1.795,944.18,941.6,2.62219105]
[1768414104809,1.795,944.18,941.59,2.62219105]
[1768414105506,1.795,944.18,941.58,2.62219105]
[1768414106510,1.795,944.18,941.53,0.18445881]
[1768414116719,0.18443535,944.19,941.53,0.18445881]
[1768414120724,2.059,944.18,941.53,0.18445881]
[1768414148741,0.18443535,944.19,941.53,0.18445881]
[1768414151144,1.636,944.18,941.53,0.18445881]
[1768414175859,1.636,944.18,941.55,2.62219105]
[1768414176356,1.636,944.18,941.57,2.62219105]
[1768414177361,1.636,944.18,941.74,2.62219105]
[1768414178362,0.18443535,944.19,941.74,2.62219105]
[1768414178662,0.18443535,944.19,941.72,2.62219105]
[1768414179462,0.18443535,944.19,941.71,2.62219105]
[1768414180458,0.18443535,944.19,941.7,2.62219105]
[1768414181361,1.807,944.18,941.7,2.62219105]
[1768414181557,1.807,944.18,941.69,2.62219105]
[1768414182662,1.807,944.18,941.68,2.62219105]
[1768414184161,1.807,944.18,941.67,2.62219105]
[1768414186262,1.807,944.18,941.66,2.62219105]
[1768414188269,1.807,944.18,941.65,2.62219105]
[1768414189871,1.807,944.18,941.66,2.62219105]
[1768414190367,1.807,944.18,941.67,2.62219105]
[1768414193575,1.807,944.18,941.66,2.62219105]
[1768414195075,1.807,944.18,941.68,2.62219105]
[1768414195572,1.807,944.18,941.67,2.62219105]
[1768414196574,1.807,944.18,941.68,2.62219105]
[1768414197080,1.807,944.18,941.79,2.62219105]
[1768414197682,1.807,944.18,941.78,2.62219105]
[1768414199189,1.807,944.18,941.77,2.62219105]
[1768414202294,1.807,944.18,941.85,2.62219105]
[1768414203294,1.807,944.18,941.84,2.62219105]
[1768414203995,1.807,944.18,941.85,2.62219105]
[1768414204491,1.807,944.18,941.84,2.62219105]
[1768414205592,1.807,944.18,941.83,2.62219105]
[1768414206198,1.807,944.18,941.82,2.62219105]
[1768414206498,1.807,944.18,941.8,2.62219105]
[1768414209694,1.807,944.18,941.79,2.62219105]
[1768414210095,1.807,944.18,941.8,2.62219105]
[1768414210600,1.807,944.18,941.79,2.62219105]
[1768414213302,1.807,944.18,941.8,2.62219105]
[1768414215303,1.807,944.18,941.81,2.62219105]
[1768414217408,1.807,944.18,941.82,2.62219105]
[1768414218507,1.807,944.18,941.83,2.62219105]
[1768414219405,1.807,944.18,941.85,2.62219105]
[1768414221507,1.807,944.18,941.86,2.62219105]
[1768414222706,1.807,944.18,941.87,2.62219105]
[1768414225608,1.807,944.18,941.88,2.62219105]
[1768414226509,0.18443535,944.19,941.88,2.62219105]
[1768414227213,0.18443535,944.19,941.89,2.62219105]
[1768414227714,0.18443535,944.19,941.9,2.62219105]
[1768414228310,0.18443535,944.19,941.91,2.62219105]
[1768414229110,2.369,944.18,941.91,2.62219105]
[1768414230510,2.369,944.18,941.9,2.62219105]
[1768414231412,2.369,944.18,941.91,2.62219105]
[1768414233512,2.369,944.18,941.92,2.62219105]
[1768414234516,2.369,944.18,941.93,2.62219105]
[1768414236614,2.369,944.18,941.94,2.62219105]
[1768414237216,2.369,944.18,941.9,2.62219105]
[1768414238214,2.369,944.18,941.84,2.62219105]
[1768414238717,2.369,944.18,941.81,2.62219105]
[1768414239317,2.369,944.18,941.82,2.62219105]
[1768414240218,2.369,944.18,941.77,2.62219105]
[1768414241415,2.369,944.18,941.76,2.62219105]
[1768414242321,2.369,944.18,941.75,2.62219105]
[1768414244419,2.369,944.18,941.74,2.62219105]
[1768414245522,2.369,944.18,941.73,2.62219105]
[1768414246021,2.369,944.18,941.74,2.62219105]
[1768414246521,2.369,944.18,941.53,0.18445881]
[1768414246522,2.369,944.18,941.73,2.62219105]
[1768414248822,2.369,944.18,941.72,2.62219105]
[1768414250628,2.369,944.18,941.71,2.62219105]
[1768414251125,2.369,944.18,941.7,2.62219105]
[1768414252231,2.369,944.18,941.69,2.62219105]
[1768414254430,2.369,944.18,941.79,0.18446273]
[1768414281452,2.369,944.18,941.97,2.62219105]
[1768414281849,2.369,944.18,941.98,2.62219105]
[1768414282047,0.18442167,944.06,941.98,2.62219105]
[1768414282351,0.18442167,944.06,941.97,2.62219105]
[1768414282852,0.18442167,944.06,941.98,2.62219105]
[1768414283554,0.18442167,944.06,941.96,2.62219105]
[1768414284554,0.18442167,944.06,941.95,2.62219105]
[1768414285754,0.18442167,944.06,941.94,2.62219105]
[1768414285951,0.18442167,944.06,941.83,2.62219105]
[1768414287051,0.18442167,944.06,941.82,2.62219105]
[1768414288157,1.899,944.05,941.82,2.62219105]
[1768414288458,8.53456111,944.05,941.82,2.62219105]
[1768414289557,8.53456111,944.05,941.8,2.62219105]
[1768414294262,8.53456111,944.05,941.81,2.62219105]
[1768414299462,8.53456111,944.05,941.79,0.18446273]
[1768414307171,6.63556111,944.05,941.79,0.18446273]
[1768414309973,1.734,944.04,941.79,0.18446273]
[1768414330282,1.734,944.04,941.06,2.62219105]
[1768414330483,1.734,944.04,941.68,0.18455126]
[1768414332189,1.734,944.04,940.98,2.62219105]
[1768414332586,1.734,944.04,941.58,0.18456349]
[1768414369913,6.63556111,944.05,941.58,0.18456349]
[1768414372814,2.652,944.04,941.58,0.18456349]
[1768414375313,2.652,944.04,941.58,2.80675454]
[1768414375913,2.652,944.04,941.76,2.62219105]
[1768414376312,2.652,944.04,941.73,2.62219105]
[1768414377313,2.652,944.04,941.7,2.62219105]
[1768414378417,2.652,944.04,941.68,2.62219105]
[1768414378918,2.652,944.04,941.67,2.62219105]
[1768414379519,2.652,944.04,941.65,2.62219105]
[1768414381516,2.652,944.04,941.63,2.62219105]
[1768414382716,2.652,944.04,941.62,2.62219105]
[1768414383715,2.652,944.04,941.6,2.62219105]
[1768414384119,2.652,944.04,941.58,0.18456349]
[1768414384120,2.652,944.04,941.59,2.62219105]
[1768414386222,2.652,944.04,941.58,2.80675454]
[1768414388322,2.652,944.04,941.58,0.18456349]
[1768414400736,2.652,944.04,940.85,2.62219105]
[1768414401039,2.652,944.04,941.38,0.1845909]
[1768414403233,2.652,944.04,940.57,2.62219105]
[1768414403431,2.652,944.04,941.24,0.18461832]
[1768414407734,2.652,944.04,940.26,2.62219105]
[1768414407934,2.652,944.04,941.0,0.18465702]
[1768414408541,2.652,944.04,940.02,2.62219105]
[1768414408740,2.652,944.04,940.91,0.1846776]
[1768414409139,2.60574349,943.78,940.91,0.1846776]
[1768414409535,2.60574349,943.8,940.91,0.1846776]
[1768414410636,2.60574349,943.74,940.91,0.1846776]
[1768414411036,9.22139828,943.74,940.91,0.1846776]